Cogmind - Beta 13 @@@ ROGUE MODE // 2024.02.29 @ 19:08:28 Player: Geraldon Result: Destroyed by Y-45 Defender with Beam Rifle Performance ------------- Evolutions (2) 1000 Regions Visited (6) 1200 Robots Destroyed (39) 195 Value Destroyed (1277) 1277 Prototype IDs (14) 280 Alien Tech Used (0) 0 Bonus (443) 443 TOTAL SCORE: 4395 Bonus ------- Follower Combat Kills 247 Aligned with FarCom 300 Friendly Fire -104 Cogmind --------- Core Integrity 0/550 Matter 300/300 Energy 271/275 System Corruption 0% Temperature Cool (17) Movement Flying (26) Location -8/Storage Parts ------- > --- POWER (1) -------- Deuterium Engine > --- PROPULSION (4) --- Improved VTOL Module Improved VTOL Module Improved VTOL Module Improved VTOL Module > --- UTILITY (4) ------ Reaction Control System Hacking Suite Hacking Suite > --- WEAPON (2) ------- High-powered Shotgun Shock Maul > --- INVENTORY (5) ---- Faulty Improved VTOL Module Improved Datajack Peak State ------------ > --- POWER ------------ Backup Power I > --- PROPULSION ------- Backup Propulsion I Cesium-ion Thruster Improved VTOL Module > --- UTILITY ---------- Hacking Suite Hacking Suite Drone Bay Supersonic Drone Bay > --- WEAPON ----------- Improved Datajack Shock Maul > --- INVENTORY -------- Deuterium Engine Backup Propulsion I High-powered Shotgun Heavy Mace [Rating: 38] Favorites ----------- Power Light Ion Engine Engine Light Ion Engine Power Core Light Nuclear Core Propulsion Light Treads Treads Light Treads Leg Aluminum Leg Hover Unit Backup Propulsion I Flight Unit Improved VTOL Module Utility Hacking Suite Device Seismic Detector Storage Medium Storage Unit Hackware Hacking Suite Weapon Assault Rifle Energy Gun Particle Gun Energy Cannon Heavy Particle Cannon Ballistic Gun Assault Rifle Special Weapon Mining Laser Impact Weapon Shock Maul Special Melee Weapon Improved Datajack Build | -11 -10 -10 -10 -9 -8 -8 ------- Run | Yrd Mat Min Exi Min Mat Sto Slots Evolved 4 | . . . . . 4 . Power . | . . . . . . . Propulsion 2 | . . . . . 2 . Utility 2 | . . . . . 2 . Weapon . | . . . . . . . Parts Attached 55 | 4 1 5 3 4 26 12 Power 6 | . 1 . . 1 3 1 Engine 4 | . 1 . . . 2 1 Core 2 | . . . . 1 1 . Reactor . | . . . . . . . Propulsion 17 | 2 . . . 2 8 5 Treads 4 | 2 . . . . 2 . Leg 7 | . . . . 2 5 . Wheel . | . . . . . . . Hover . | . . . . . . . Flight 6 | . . . . . 1 5 Utility 12 | . . 2 3 1 4 2 Device 9 | . . 2 3 1 1 2 Storage 1 | . . . . . 1 . Processor . | . . . . . . . Hackware 2 | . . . . . 2 . Protection . | . . . . . . . Artifact . | . . . . . . . Weapon 20 | 2 . 3 . . 11 4 Energy Gun 2 | . . . . . 2 . Energy Cannon 1 | . . . . . 1 . Ballistic Gun 9 | 2 . 2 . . 4 1 Ballistic Cannon . | . . . . . . . Launcher . | . . . . . . . Special Weapon 1 | . . 1 . . . . Impact Weapon 3 | . . . . . 1 2 Slashing Weapon . | . . . . . . . Piercing Weapon . | . . . . . . . Special Melee Weapon 4 | . . . . . 3 1 Unidentified Prototypes 6 | . . . 3 . 1 2 Parts Lost 23 | . . 1 . 3 19 . Power 3 | . . . . 1 2 . Propulsion 12 | . . . . 2 10 . Utility 2 | . . . . . 2 . Weapon 6 | . . 1 . . 5 . Highest Loss Streak 7 | . . 1 . 3 7 . To Critical Strikes . | . . . . . . . Average Slot Usage (%) 75 | . 69 83 93 91 46 86 Engine 7 | . 12 14 14 . 2 8 Core 1 | . . . . 6 1 . Treads 11 | . 28 28 28 . 3 . Leg 6 | . . . . 27 7 . Hover 2 | . . . . . . 10 Flight 3 | . . . . . . 18 Device 14 | . . 12 21 27 9 13 Hackware 5 | . . . . . 7 18 Ballistic Gun 16 | . 28 26 28 28 5 3 Impact Weapon 1 | . . . . . . 8 Special Melee Weapon 2 | . . . . . 3 5 Naked Turns 89 | . . . . . 89 . Heaviest Build 29 | 3 6 8 15 10 29 16 Greatest Support 40 | 40 40 40 40 20 40 20 Greatest Overweight (x) 1 | . . . . . 1 . Average Overweight (x) . | . . . . . . . Largest Inventory Capacity 10 | 5 5 5 5 5 10 5 Average Capacity 5 | 5 5 5 5 5 6 5 Most Carried 6 | 4 2 4 5 5 6 5 Average Carried 2 | 1 1 2 3 2 2 2 Final Capacity 5 | 5 5 5 5 5 5 5 Final Carried 5 | 2 1 3 5 2 4 2 Class Distribution -------------------- 49% | Mutant 24% | Hacker-Mutant 18% | Scavenger-Mutant 7% | Hacker-Sprinter Dominant Class ---------------- Mutant | -10/Materials Mutant | -10/Mines Mutant | -10/Exiles Mutant | -9/Mines Hacker-Mutant | -8/Materials Hacker-Mutant | -8/Storage Resources | -11 -10 -10 -10 -9 -8 -8 ----------- Run | Yrd Mat Min Exi Min Mat Sto Matter Collected 1248 | 240 30 172 . 135 528 143 Remotely . | . . . . . . . Salvage Created 1489 | . 53 342 . 260 767 67 Parts 86 | . 2 19 . 21 37 7 Haulers Intercepted 5 | . 1 . . . 3 1 Recyclers Shooed 1 | . . . . . 1 . Parts Field Recycled . | . . . . . . . Retrieved Matter . | . . . . . . . Parts Self-Destructed . | . . . . . . . Prevented . | . . . . . . . Kills | -11 -10 -10 -10 -9 -8 -8 ------- Run | Yrd Mat Min Exi Min Mat Sto Combat Hostiles Destroyed 30 | . . 8 . 8 13 1 Guns 27 | . . 8 . 8 10 1 Cannons 1 | . . . . . 1 . AOE 2 | . . . . . 2 . Classes Destroyed 8 | . 1 2 . 1 4 . Builder 2 | . . 2 . . . . Hauler 5 | . 1 . . . 3 1 Operator 2 | . . . . . 1 1 Swarmer 4 | . . . . 3 . 1 Grunt 22 | . . 8 . 5 9 . Sentry 1 | . . . . . 1 . Specialist 2 | . . . . . 2 . Hunter 1 | . . . . . 1 . Best Kill Streak 4 | . 1 4 . 3 4 1 Combat Bots Only 4 | . . 4 . 3 4 1 Max Kills in Single Turn 2 | . 1 1 . 2 2 1 Gunslinging 1 | . . . . 1 . . Exploded 2 | . . . . . 2 . Melee . | . . . . . . . Uniques/NPCs Destroyed . | . . . . . . . Combat | -11 -10 -10 -10 -9 -8 -8 -------- Run | Yrd Mat Min Exi Min Mat Sto Hostile Shots Fired 258 | . . 60 . 28 159 11 Missed 76 | . . 18 . 7 47 4 Damage Taken 3189 | . . 487 . 295 2307 100 Core 683 | . . 62 . 64 518 39 Absorbed by Shields . | . . . . . . . Core Remaining (%) 74 | 100 . . . 49 . . Volleys Fired 145 | . 5 38 . 20 80 2 Largest 2 | . 2 2 . 2 2 1 Hottest 140 | . 40 100 . 40 140 25 Shots Fired 247 | . 10 69 . 40 126 2 Gun 229 | . 10 63 . 40 114 2 Cannon 12 | . . . . . 12 . Launcher . | . . . . . . . Special 6 | . . 6 . . . . Kinetic 214 | . 10 63 . 40 99 2 Thermal 33 | . . 6 . . 27 . Explosive . | . . . . . . . Electromagnetic . | . . . . . . . Robot Hit Streak 11 | . 8 8 . 8 11 1 Robot Miss Streak 5 | . 1 5 . 2 5 1 Penetration Max . | . . . . . . . Secondary Targets 5 | . . 1 . 3 1 . Max Gunslinging Chain 1 | . . 1 . 1 1 . Shots Hit Robots 176 | . 8 41 . 29 94 4 Core Hits 79 | . 2 21 . 16 37 3 Critical Kills 2 | . . . . . . 2 Critical Parts Destroyed 1 | . . . . . 1 . Critical Strikes 3 | . . . . . 1 2 Destroy 1 | . . . . . 1 . Smash 2 | . . . . . . 2 Melee Attacks 18 | . . . . . 6 12 Impact 13 | . . . . . 2 11 Slashing . | . . . . . . . Piercing . | . . . . . . . Sneak Attacks 7 | . . . . . 4 3 Combat Hostiles . | . . . . . . . Follow-up Attacks . | . . . . . . . Damage Inflicted 3089 | . 90 484 . 312 1984 219 Guns 2282 | . 90 436 . 302 1442 12 Cannons 225 | . . . . . 225 . Explosions 311 | . . . . . 311 . Melee 207 | . . . . . . 207 Ramming 16 | . . . . 10 6 . Kinetic 2046 | . 90 436 . 302 1206 12 Thermal 509 | . . 48 . . 461 . Explosive 311 | . . . . . 311 . Electromagnetic . | . . . . . . . Impact 207 | . . . . . . 207 Slashing . | . . . . . . . Piercing . | . . . . . . . Highest Corruption . | . . . . . . . Average Corruption . | . . . . . . . Corruption Purged . | . . . . . . . Corruption Blocked . | . . . . . . . Overload Shots . | . . . . . . . Overflow Damage 59 | . . . . . 59 . Projectiles . | . . . . . . . Explosions 59 | . . . . . 59 . Melee . | . . . . . . . Knockbacks 1 | . . . . 1 . . Impact 1 | . . . . 1 . . Kinetic . | . . . . . . . Secondary . | . . . . . . . Self-Inflicted Damage 114 | . . . . . 114 . Shots 1 | . . . . . 1 . Rammed 2 | . . . . . 2 . Targets Rammed 6 | . . . . 4 2 . Kicked 4 | . . . . 4 . . Crushed . | . . . . . . . Highest Temperature 364 | . . 80 . 18 364 1 Average Temperature 90 | . . 22 . 10 128 1 Received Heat Transfer 1260 | . . 273 . 159 783 45 Effects 5 | . . . . . 5 . Energy Bleed 2 | . . . . . 2 . Interference 3 | . . . . . 3 . Siege Activations . | . . . . . . . Robots Corrupted . | . . . . . . . Combat Hostiles . | . . . . . . . Parts Fried . | . . . . . . . Impact Corruptions . | . . . . . . . Robots Melted . | . . . . . . . Combat Hostiles . | . . . . . . . Parts Melted 2 | . . . . . 2 . Heat Transferred 951 | . . 100 . . 851 . Parts Sabotaged . | . . . . . . . Parts Stolen . | . . . . . . . Parts Stripped . | . . . . . . . Power Chain Reactions . | . . . . . . . Alert | -11 -10 -10 -10 -9 -8 -8 ------- Run | Yrd Mat Min Exi Min Mat Sto Peak Influence 287 | . 12 93 . 170 287 257 Initial 39 | . . 4 . . . 39 Average 67 | . 3 47 . 24 97 99 Maximum Alert Level 1 | . . . . . 1 1 Low Security (%) 91 | 100 100 100 . 100 81 84 Level 1 8 | . . . . . 18 15 Level 2 . | . . . . . . . Level 3 . | . . . . . . . Level 4 . | . . . . . . . Level 5 . | . . . . . . . High Security . | . . . . . . . Max Security . | . . . . . . . Squads Dispatched 5 | . 1 . . . 3 1 Investigation 1 | . . . . . 1 . Extermination . | . . . . . . . Reinforcement 4 | . 1 . . . 2 1 Assault . | . . . . . . . Garrison . | . . . . . . . Intercept . | . . . . . . . Searches Triggered . | . . . . . . . Construction Impeded . | . . . . . . . Haulers Reinforced . | . . . . . . . Active Scanning Responses . | . . . . . . . Cargo Convoy Interrupts . | . . . . . . . Stealth | -11 -10 -10 -10 -9 -8 -8 --------- Run | Yrd Mat Min Exi Min Mat Sto Distress Signals 7 | . . . . . 2 5 Communications Jammed . | . . . . . . . Distress Signals . | . . . . . . . Times Spotted 65 | . 2 12 . 8 30 13 Peak Tracking Total 11 | . 2 6 . 3 11 3 Tactical Retreats 7 | . . 3 . . 2 2 Traps | -11 -10 -10 -10 -9 -8 -8 ------- Run | Yrd Mat Min Exi Min Mat Sto Traps Triggered . | . . . . . . . Indirectly . | . . . . . . . Trap Hack Attempts . | . . . . . . . Triggered . | . . . . . . . Disarmed . | . . . . . . . Reprogrammed . | . . . . . . . Reused . | . . . . . . . Traps Extracted . | . . . . . . . Installed . | . . . . . . . Triggered . | . . . . . . . Machines | -11 -10 -10 -10 -9 -8 -8 ---------- Run | Yrd Mat Min Exi Min Mat Sto Machines Disabled 6 | . . 1 . . 4 1 Max in Single Turn 2 | . . 1 . . 2 1 Garrison Access 1 | . . . . . 1 . Machines Repaired . | . . . . . . . Machines Dismantled . | . . . . . . . Machines Sabotaged . | . . . . . . . Overloaded Fab Kills . | . . . . . . . Hacking | -11 -10 -10 -10 -9 -8 -8 --------- Run | Yrd Mat Min Exi Min Mat Sto Machines Accessed 18 | . 2 1 2 . 7 6 Terminals 13 | . 2 1 . . 5 5 Fabricators . | . . . . . . . Repair Stations 1 | . . . . . . 1 Recycling Units . | . . . . . . . Scanalyzers 1 | . . . . . 1 . Garrison Access 1 | . . . . . 1 . Total Hacks 68 | . 4 3 12 . 27 22 Successful 43 | . 2 3 12 . 13 13 Failed 25 | . 2 . . . 14 9 Catastrophic 3 | . . . . . 2 1 Database Lockouts . | . . . . . . . Manual 21 | . . 2 1 . 15 3 Terminals 50 | . 4 3 . . 23 20 Fabricators . | . . . . . . . Repair Stations 2 | . . . . . . 2 Recycling Units . | . . . . . . . Scanalyzers 3 | . . . . . 3 . Garrison Access 1 | . . . . . 1 . Terminal Hacks 30 | . 2 1 12 . 4 11 Record 12 | . . . 12 . . . Prototype ID Bank 1 | . . . . . 1 . Open Door 1 | . . . . . . 1 Branch Access Points 2 | . . . . . 1 1 Emergency Access Points 1 | . . . . . 1 . Machine Index 1 | . . . . . . 1 Alert Level 3 | . . 1 . . . 2 Unreport Threat 1 | . . . . . . 1 Locate Traps 1 | . . . . . 1 . Security Status 1 | . . . . . . 1 Patrol Status 1 | . . . . . . 1 Hauler Manifests 3 | . 1 . . . . 2 Zone Layout 2 | . 1 . . . . 1 Fabricator Hacks . | . . . . . . . Repair Station Hacks 1 | . . . . . . 1 Refit 1 | . . . . . . 1 Recycling Unit Hacks . | . . . . . . . Scanalyzer 3 | . . . . . 3 . Insert Component 1 | . . . . . 1 . Analyze 2 | . . . . . 2 . Garrison Access Hacks 1 | . . . . . 1 . Seal Access 1 | . . . . . 1 . Unauthorized Hacks 8 | . . 2 . . 5 1 Terminals 8 | . . 2 . . 5 1 Track 1 | . . 1 . . . . Assimilate 2 | . . . . . 2 . Botnet 3 | . . 1 . . 1 1 Disrupt 2 | . . . . . 2 . Fabricators . | . . . . . . . Repair Stations . | . . . . . . . Recycling Units . | . . . . . . . Scanalyzers . | . . . . . . . Garrison Access . | . . . . . . . Data Cores Recovered . | . . . . . . . Used . | . . . . . . . Hacking Detections 14 | . 2 1 . . 6 5 Full Trace Events 1 | . . . . . 1 . Feedback Events . | . . . . . . . Feedback Blocked . | . . . . . . . Robot Schematics Acquired . | . . . . . . . Robots Built . | . . . . . . . Authchips . | . . . . . . . Time . | . . . . . . . Total Robot Build Rating . | . . . . . . . Part Schematics Acquired 1 | . . . . . 1 . Parts Built . | . . . . . . . Authchips . | . . . . . . . Time . | . . . . . . . Total Part Build Rating . | . . . . . . . Parts Repaired . | . . . . . . . Time . | . . . . . . . Parts Recycled . | . . . . . . . Recycled Matter . | . . . . . . . Retrieved Matter . | . . . . . . . Retrieved Components . | . . . . . . . Parts Scanalyzed 1 | . . . . . 1 . Part Schematics Acquired 1 | . . . . . 1 . Parts Damaged . | . . . . . . . Bothacking | -11 -10 -10 -10 -9 -8 -8 ------------ Run | Yrd Mat Min Exi Min Mat Sto Used RIF Installer . | . . . . . . . Robots Hacked 2 | . . . . . 1 1 Non-combat 1 | . . . . . 1 . Combat 1 | . . . . . . 1 Robot Hacks Applied 3 | . . . . . 2 1 parse_system 2 | . . . . . 1 1 no_distress 1 | . . . . . 1 . Relay Couplers Released . | . . . . . . . Fabnet Peak Effective % . | . . . . . . . Robots Rewired . | . . . . . . . Allies Hacked . | . . . . . . . Hacks Repelled . | . . . . . . . Allies | -11 -10 -10 -10 -9 -8 -8 -------- Run | Yrd Mat Min Exi Min Mat Sto Total Allies 6 | . . 3 . . 2 1 Largest Group 2 | . . 2 2 . 1 1 Highest-Rated Group 100 | . . 42 42 . 10 100 Highest-Rated Ally 100 | . . 31 31 . 10 100 Total Orders 7 | . . . . . 5 2 EXPLORE 5 | . . . . . 3 2 RETURN 2 | . . . . . 2 . Ally Attacks 21 | . . . . . . 21 Total Damage 757 | . . . . . . 757 Kills 9 | . . . . . . 9 Allies Corrupted . | . . . . . . . Allies Melted . | . . . . . . . Intel | -11 -10 -10 -10 -9 -8 -8 ------- Run | Yrd Mat Min Exi Min Mat Sto Robot Analysis Total . | . . . . . . . Derelict Logs Recovered 3 | . . 1 . 2 . . Drone Launches 6 | . . . . . 4 2 Drone Recoveries 4 | . . . . . 3 1 Exploration | -11 -10 -10 -10 -9 -8 -8 ------------- Run | Yrd Mat Min Exi Min Mat Sto Turns Passed 4383 | 68 110 1106 369 684 1162 884 Spaces Moved 2870 | 42 60 589 226 458 801 694 Core 526 | 7 . . . . 461 58 Treads 998 | 35 60 589 226 . 88 . Legs 623 | . . . . 458 165 . Wheels . | . . . . . . . Hover 336 | . . . . . . 336 Flight 387 | . . . . . 87 300 Fastest Speed 26 | 50 160 160 160 120 35 26 Average Speed 104 | 141 160 160 160 120 76 52 Slowest Speed 190 | 160 160 160 160 120 190 76 Overloaded Moves . | . . . . . . . Propulsion Burnouts . | . . . . . . . Robots Hopped 1 | . . . . . . 1 Cave-ins Triggered . | . . . . . . . Exploration Rate (%) 55 | 4 21 88 61 88 68 55 Regions Visited 6 Branch Regions 4 Pre-discovered Areas 4 | . . . 1 3 . . Known Exits Taken 1 | . . . . . 1 . Unknown Exits Taken 5 | 1 1 1 1 1 . . Scrap Searched 3 | . . 1 . 2 . . Spaces Dug 11 | . . 3 . . 2 6 Terrain Destroyed 56 | . . 3 . . 47 6 Melee 8 | . . . . . 2 6 Projectile 5 | . . 3 . . 2 . AOE 43 | . . . . . 43 . Terrain Rammed . | . . . . . . . Walls Destroyed . | . . . . . . . Machines Disabled . | . . . . . . . Actions | -11 -10 -10 -10 -9 -8 -8 --------- Run | Yrd Mat Min Exi Min Mat Sto Total 4034 | 51 65 677 235 555 1259 1192 Wait 877 | . . 41 . 69 309 458 Move 2862 | 41 59 588 225 457 800 692 Hop 1 | . . . . . . 1 Pick Up 45 | 6 . 5 4 1 22 7 Fast Attach 5 | . . . . . 3 2 Attach 43 | 4 1 3 2 4 23 6 Detach 6 | . . . . . 6 . Swap 7 | . . 2 1 . . 4 Drop 19 | . . . 3 . 8 8 Fire 145 | . 5 38 . 20 80 2 Melee 18 | . . . . . 6 12 Ram 2 | . . . . . 2 . Kick 4 | . . . . 4 . . Crush . | . . . . . . . Escape Stasis . | . . . . . . . Rewire . | . . . . . . . Trap . | . . . . . . . Miscellaneous . | . . . . . . . Route ------- -11/Scrapyard -10/Materials -10/Mines (discovered 3 exits: [*Mat x2] / *Exi) -10/Exiles -9/Mines -8/Materials (discovered 2 exits: *Sto x2) -8/Storage (discovered 1 exit: Rec) History --------- Turn | Location | Event 27 | -11/Scrapyard | Discovered new exit (range 15) 69 | -11/Scrapyard | Entered Materials 135 | -10/Materials | Discovered new exit (range 15) 179 | -10/Materials | Entered Mines 190 | -10/Mines | Received a Mining Laser from a helpful Derelict 193 | -10/Mines | Met a Derelict bent on vengeance 307 | -10/Mines | Build established: Mutant 315 | -10/Mines | Learned Materials emergency access door positions 315 | -10/Mines | Discovered new exit (range 10) 592 | -10/Mines | Discovered new exit (range 8) 971 | -10/Mines | Excavation squad dispatched 971 | -10/Mines | A large section of the Mines collapsed 1268 | -10/Mines | Deemed a non-threat by the Exiles lab entrance 1268 | -10/Mines | Discovered new exit (range 5) 1285 | -10/Mines | Entered Exiles 1285 | -10/Exiles | Accompanied by 2 allies 1315 | -10/Exiles | Led the pair of lost Derelicts to a safe place 1329 | -10/Exiles | Met 8R-AWN 1351 | -10/Exiles | Met EX-HEX 1394 | -10/Exiles | Met EX-BIN 1417 | -10/Exiles | Aligned with FarCom system 1418 | -10/Exiles | Given EX-Vault access code 1477 | -10/Exiles | Opened EX-Vault 1484 | -10/Exiles | Found Prototype Device 1485 | -10/Exiles | Identified Cloak of Protection 1489 | -10/Exiles | Found Prototype Device 1490 | -10/Exiles | Identified Supersonic Drone Bay 1494 | -10/Exiles | Found Prototype Device 1495 | -10/Exiles | Identified PSU Rigger 1534 | -10/Exiles | Warned to stay clear of 0b10 Research branches 1579 | -10/Exiles | Met EX-DEC 1590 | -10/Exiles | Learned location of Zion (-6) 1642 | -10/Exiles | Discovered new exit (range 10) 1654 | -10/Exiles | Left Exiles lab with Supersonic Drone Bay 1654 | -10/Exiles | Entered Mines 1703 | -9/Mines | Lost 3 parts (1p2n) 1732 | -9/Mines | Learned location of Storage (-8) 2037 | -9/Mines | Core integrity fell below 50% 2314 | -9/Mines | Build established: Scavenger-Mutant 2332 | -9/Mines | Discovered new exit (range 4) 2338 | -9/Mines | Entered Materials 2338 | -8/Materials | Evolved 4 slots: Propulsion x2, Utility x2 2489 | -8/Materials | Lost 5 parts (1p2n2w) 2721 | -8/Materials | Core integrity fell below 50% 2748 | -8/Materials | Lost 6 parts (3n2u1w) 2887 | -8/Materials | Core integrity fell below 20% 2925 | -8/Materials | Lost 7 parts (1p4n2w) 2996 | -8/Materials | Identified exit to Storage 3290 | -8/Materials | Build established: Hacker-Mutant 3500 | -8/Materials | Entered Storage 3504 | -8/Storage | Met 01-MTF 3519 | -8/Storage | Identified exit to Recycling 4358 | -8/Storage | Build established: Hacker-Sprinter 4384 | -8/Storage | Destroyed by Y-45 Defender with Beam Rifle Last Messages --------------- 04072_ Acquired Imp. VTOL Module. 04079_ Acquired 41 matter. 04081_ Acquired Reaction Control System. 04087_ Acquired Faulty Imp. VTOL Module. 04088_ Dropped Backup Propulsion I. 04090_ Dropped Hvy. Mace. 04090_ Dropped Backup Power I. 04093_ Acquired 29 matter. 04099_ Connecting with Terminal... 04123_ K-01 Serf cleans the Compression Vault. 04176_ Connecting with Terminal... 04185_ U-05 Engineer builds a Wall. 04186_ W-25 Informer sends out distress signal. 04190_ U-05 Engineer builds a Wall. 04196_ Acquired 4 matter. 04210_ S-10 Pest destroyed. 04212_ Acquired 4 matter. 04235_ R-06 Scavenger collects Flight Unit. 04238_ R-06 Scavenger collects Lgt. Ion Engine. Map ----- +----------------------------------------------------+ | ??????# #??????????# ??????? | | ??????# #??????????# ??????? | | ??????# % #??????????# ??????? | | ??????######+########### #??????????# ??????? | | ?????????# ####?????# ############ ??????? | | ?????????# T###?????# # ## ??????? | | ?????????##" "####?????# # "" ## ??????? | | ?????????#! ##?????# #%""""!" ## ??????? | | ?????????# ==######## + [""%" ## ??????? | | ?????????#== = ###! !## #% ""*" ## ??????" | | ?????????#= = =###! !## # ["""" ## ?????"" | | ?????????##########! !##k + """ #????????? "" | | ??????????????????#! ## #% #???????? | | ??????????????????## ### #######/#########+# ] | | ??????????????????#T + # ## =^ s | | ??????????????????## #% a# ## % "" | | ???????????????????##### # ## "" | | ???????????????????????# # "" + ^ "" | | ???????????????????????# # Y" # | | #####??????????????????# # "" + | | #"""#??????????????????# # # ####### | | #"T"####???????????????# k ## ### #?????? #### | | #??????????????## ####?# #??????? #??? | | """"" #???? ########## #???# #???????? #??? | | """"" #? #???# #?????????#??? | | """"" +? Y @ #???# #????????????? | | #? a #???# #????????????? | | # ####+##### #???#####????????????? | | ## #?# #####+#####??????????????????? | | ## #?# * # #??????????????????? | | ###+##### ### # #??????????????????? | | ??# #???# ##" # #??????????????????? | | ??# #???# ##T """ # ##?????????????????? | | ??# #???# ##" """ # """"" T#?????????????????? | | ??# #???# ### """ # """"" ##?????????????????? | | ??# #???# #?# # """"" #??????????????????? | | ??# #???# #?# """ # #??????????????????? | | ??# #???# #?# """ ###+#######??????????????????? | | ??# #???#%^^#?# """ #?# #????????????????????????? | | ??# #???# #?# #?# #????????????????????????? | | ??# #???# #?#####+#?# #????????????????????????? | | ??# #???# #?????# ###+####?????????????????????? | | ??# #???# #?????# ## * #?????????????????????? | | ??# #???# #????## ## #?????????????????????? | | ### #???# ###### # [#?????????????????????? | | "!#???# % +% [! #?????????????????????? | | #T# ##### =*###### # % #?????????????????????? | | ###% !==/ #????##### #?????????????????????? | | ??# ####+#####?????# #?????????????????????? | | ??# [%# ! ###???#######?????????????????????? | +----------------------------------------------------+ Best States ------------- Heat Dissipation 41 Energy Generation 16 Energy Capacity 290 Matter Stores 300 Matter Capacity 300 Sight Range 16 Terrain Scan Density 10 Evasion (%) 72 Recoil Reduction 2 Offensive Hacking 20 Item Schematics ----------------- Hacking Suite | -8/Materials | Scanalyzed Robot Schematics ------------------ None Fabricated ------------ Nothing Alien Tech Used ----------------- None Achievements -------------- None Challenges ------------ None Game ------ Seed SmallDecoderPurifier Manual? 0 Play Time 00:33:06 Cumulative 657.4 hours Start 2024.02.29 @ 18:34:02 End 2024.02.29 @ 19:08:28 Sessions 1 Manual Loads 0 Difficulty Rogue Special Mode None Game No. 655 Rogue 614 Adventurer 41 Explorer 0 Win Type - Total 31 Types 23/0/6/1/0/0/0/1/0 Lore% 80 Gallery% 83 Achievement% 79 Wizard Run 0 Options --------- Layout 1 ASCII 0 Keyboard 0 Movement Mouse Keybinds 0 Fullscreen 1 Font 24/Swanston Map View 50x35 Zoom Use 0% Tactical HUD 1 Map Filters NONE Filters NONE Steam 1 RUN: 64185e5c-30b1-4109-a5f0-8181a4a1c2c5